Cogmind - Beta 16 @@@ ROGUE MODE // 2025.12.29 @ 22:41:56 Player: teh_pwnerer Result: Destroyed by G-47 Trooper with Particle Gun Performance ------------- Evolutions (2) 1000 Regions Visited (3) 600 Robots Destroyed (23) 115 Value Destroyed (670) 670 Prototype IDs (3) 60 Alien Tech Used (0) 0 Bonus (0) 0 TOTAL SCORE: 2445 Bonus ------- None Cogmind --------- Core Integrity 0/550 Matter 300/300 Energy 100/100 System Corruption 0% Temperature Cool (9) Movement Core (50) Location -8/Materials Parts ------- > --- POWER (3) -------- (None) > --- PROPULSION (2) --- (None) > --- UTILITY (3) ------ (None) > --- WEAPON (3) ------- (None) > --- INVENTORY (5) ---- Heat Sink Hacking Suite Peak State ------------ > --- POWER ------------ Backup Power I > --- PROPULSION ------- Improved Flight Unit Improved Flight Unit > --- UTILITY ---------- Small Storage Unit Salvage Targeting Computer Backup Plating I > --- WEAPON ----------- Improved Medium Laser Light Assault Rifle Flail > --- INVENTORY -------- ECM Suite [Rating: 17] Favorites ----------- Power Light Ion Engine Engine Light Ion Engine Propulsion Compact Wheel Leg Aluminum Leg Wheel Compact Wheel Flight Unit Improved Flight Unit Utility Small Storage Unit Device Heat Sink Storage Small Storage Unit Processor Salvage Targeting Computer Protection Backup Plating I Weapon Light Assault Rifle Energy Gun Heavy EM Pulse Gun Ballistic Gun Light Assault Rifle Ballistic Cannon Assault Cannon Launcher Rocket Launcher Impact Weapon Flail Build | -11 -10 -9 -8 ------- Run | Yrd Mat Mat Mat Slots Evolved 4 | . . 2 2 Power 2 | . . . 2 Propulsion . | . . . . Utility 1 | . . 1 . Weapon 1 | . . 1 . Parts Attached 25 | 6 4 7 8 Power 2 | 1 . . 1 Engine 2 | 1 . . 1 Core . | . . . . Reactor . | . . . . Propulsion 6 | 2 2 . 2 Treads . | . . . . Leg 1 | . . . 1 Wheel 3 | 2 . . 1 Hover . | . . . . Flight 2 | . 2 . . Utility 6 | 1 . 2 3 Device 2 | . . 1 1 Storage 1 | 1 . . . Processor 1 | . . 1 . Hackware . | . . . . Protection 2 | . . . 2 Artifact . | . . . . Weapon 11 | 2 2 5 2 Energy Gun 4 | . . 3 1 Energy Cannon . | . . . . Ballistic Gun 3 | 2 1 . . Ballistic Cannon 1 | . . . 1 Launcher 1 | . 1 . . Special Weapon . | . . . . Impact Weapon 2 | . . 2 . Slashing Weapon . | . . . . Piercing Weapon . | . . . . Special Melee Weapon . | . . . . Unidentified Prototypes 3 | . 1 2 . Parts Lost 16 | . 4 1 11 Power 2 | . 1 . 1 Propulsion 5 | . 1 . 4 Utility 3 | . . 1 2 Weapon 6 | . 2 . 4 Highest Loss Streak 5 | . 3 1 5 To Critical Strikes . | . . . . Average Backups 2 | 1 1 3 3 Power . | . . . . Propulsion . | . . . . Utility . | . . 1 2 Weapon 1 | . . 2 1 Tool/Special . | . . . . Unused Backups 2 | . . . 2 Power . | . . . . Propulsion 1 | . . . 1 Utility 1 | . . . 1 Weapon . | . . . . Tool/Special . | . . . . Average Slot Usage (%) 63 | . 81 73 35 Engine 8 | . 9 11 5 Wheel 6 | . 17 . . Flight 12 | . 9 22 6 Device 1 | . . . 3 Storage 9 | . 14 11 2 Processor 3 | . . 7 2 Protection 3 | . 3 6 2 Energy Gun 4 | . . 7 6 Ballistic Gun 11 | . 25 6 . Impact Weapon 1 | . . . 4 Peak Build Rating 17 | 6 11 17 16 Average Rating 7 | 5 7 12 8 On Entrance 8 | . 6 11 15 Avg Prop Armor Cover (%) 11 | . . . 11 Naked Turns 28 | . . . 28 Heaviest Build 17 | 10 10 13 17 Greatest Support 32 | 32 32 10 16 Greatest Overweight (x) 3 | . 2 1 3 Average Overweight (x) . | . . . . Largest Inventory Capacity 8 | 8 8 8 8 Average Capacity 7 | 7 8 8 5 Most Carried 6 | 5 3 6 6 Average Carried 2 | 1 1 3 3 Final Capacity 8 | 8 8 8 5 Final Carried 5 | 1 1 5 2 Class Distribution -------------------- 100% | Mutant Dominant Class ---------------- Mutant | -10/Materials Mutant | -9/Materials Mutant | -8/Materials Resources | -11 -10 -9 -8 ----------- Run | Yrd Mat Mat Mat Matter Collected 667 | 142 94 204 227 Remotely . | . . . . Salvage Created 777 | . 199 120 458 Parts 43 | . 14 9 20 Haulers Intercepted . | . . . . Recyclers Shooed 1 | . 1 . . Parts Field Recycled . | . . . . Retrieved Matter . | . . . . Parts Self-Destructed . | . . . . Prevented . | . . . . Parts Restored . | . . . . Kills | -11 -10 -9 -8 ------- Run | Yrd Mat Mat Mat Combat Hostiles Destroyed 21 | . 8 2 11 Guns 12 | . 5 1 6 AOE 3 | . 3 . . Classes Destroyed 5 | . 3 1 1 Watcher 2 | . 2 . . Swarmer 9 | . 5 . 4 Grunt 7 | . 3 . 4 Sentry 4 | . . 2 2 Hunter 1 | . . . 1 Best Kill Streak 6 | . 4 1 6 Combat Bots Only 6 | . 3 1 6 Max Kills in Single Turn 1 | . 1 1 1 Gunslinging . | . . . . Exploded 1 | . 1 . . Melee . | . . . . Uniques/NPCs Destroyed . | . . . . Combat | -11 -10 -9 -8 -------- Run | Yrd Mat Mat Mat Hostile Shots Fired 219 | . 57 17 145 Missed 63 | . 17 10 36 Hits 156 | . 40 7 109 Melee 6 | . . . 6 Projectile 150 | . 40 7 103 Critical Strikes 7 | . 1 . 6 Damage Taken 2226 | . 479 143 1604 Core 687 | . 117 20 550 Absorbed by Shields . | . . . . Core Remaining (%) 82 | 100 53 95 . Volleys Fired 105 | . 32 33 40 Largest 2 | . 2 2 2 Hottest 87 | . 53 56 87 Shots Fired 135 | . 59 35 41 Gun 121 | . 54 35 32 Cannon 9 | . . . 9 Launcher 5 | . 5 . . Special . | . . . . Kinetic 67 | . 54 4 9 Thermal 33 | . . 9 24 Explosive 5 | . 5 . . Electromagnetic 30 | . . 22 8 Robot Hit Streak 12 | . 12 7 6 Robot Miss Streak 4 | . 4 4 3 Penetration Max . | . . . . Secondary Targets 1 | . 1 . . Max Gunslinging Chain 1 | . 1 . . Shots Hit Robots 81 | . 31 19 31 Core Hits 37 | . 20 4 13 Critical Kills . | . . . . Critical Parts Destroyed 2 | . . . 2 Critical Strikes 7 | . . . 7 Burn 5 | . . . 5 Smash 2 | . . . 2 Melee Attacks 18 | . . . 18 Impact 18 | . . . 18 Slashing . | . . . . Piercing . | . . . . Sneak Attacks . | . . . . Combat Hostiles . | . . . . Follow-up Attacks 1 | . . . 1 Damage Inflicted 1646 | . 582 314 750 Guns 836 | . 267 268 301 Cannons 98 | . . . 98 Explosions 361 | . 315 46 . Melee 346 | . . . 346 Ramming 5 | . . . 5 Kinetic 389 | . 267 24 98 Thermal 305 | . . 103 202 Explosive 315 | . 315 . . Electromagnetic 286 | . . 187 99 Impact 346 | . . . 346 Slashing . | . . . . Piercing . | . . . . Highest Corruption . | . . . . Average Corruption . | . . . . Corruption Purged . | . . . . Corruption Blocked . | . . . . Overload Shots . | . . . . Overflow Damage 96 | . 1 . 95 Projectiles . | . . . . Explosions 1 | . 1 . . Melee 95 | . . . 95 Knockbacks 5 | . . . 5 Impact 1 | . . . 1 Kinetic 4 | . . . 4 Secondary . | . . . . Self-Inflicted Damage 118 | . 75 41 2 Shots 3 | . 2 1 . Rammed 5 | . . . 5 Targets Rammed 5 | . . . 5 Kicked . | . . . . Crushed . | . . . . Highest Temperature 192 | . 29 36 192 Average Temperature 38 | . 7 15 63 Received Heat Transfer 729 | . 126 36 567 Siege Activations . | . . . . Martial Activations . | . . . . Shielding Activations . | . . . . Robots Disrupted . | . . . . Combat Hostiles . | . . . . Robots Corrupted 6 | . . 1 5 Combat Hostiles 6 | . . 1 5 Parts Fried 4 | . . 1 3 Impact Corruptions 7 | . . . 7 Robots Melted . | . . . . Combat Hostiles . | . . . . Parts Melted 2 | . . . 2 Heat Transferred 975 | . . 161 814 Parts Sabotaged . | . . . . Parts Stolen . | . . . . Parts Stripped . | . . . . Power Chain Reactions 1 | . . 1 . Alert | -11 -10 -9 -8 ------- Run | Yrd Mat Mat Mat Maximum Alert Level . | . . . . Low Security (%) 100 | 100 100 100 100 Level 1 . | . . . . Level 2 . | . . . . Level 3 . | . . . . Level 4 . | . . . . Level 5 . | . . . . High Security . | . . . . Max Security . | . . . . Peak Influence 115 | . 94 45 115 Initial 18 | . . . 18 Average 18 | . 28 6 49 Influence Increases 689 | . 238 124 327 Destroy 0b10 Robot/C 420 | . 160 40 220 Destroy 0b10 Robot/NC 10 | . 10 . . Destroy Leader 94 | . 34 20 40 Successful Hack 4 | . . . 4 Disable Machine 15 | . . . 15 Destroy Structure 41 | . 34 4 3 Partial Spotted 30 | . . 15 15 Lose Combat Pursuer 75 | . . 45 30 Influence Decreases 613 | . 238 79 296 Entered New Map 27 | . . . 27 Time Decay 436 | . 198 69 169 Lost Part 150 | . 40 10 100 Squads Dispatched 3 | . 2 1 . Investigation 1 | . 1 . . Extermination . | . . . . Reinforcement 2 | . 1 1 . Assault . | . . . . Garrison . | . . . . Intercept . | . . . . Searches Triggered . | . . . . Construction Impeded . | . . . . Haulers Reinforced . | . . . . Active Scanning Responses . | . . . . Cargo Convoy Interrupts . | . . . . Stealth | -11 -10 -9 -8 --------- Run | Yrd Mat Mat Mat Distress Signals 1 | . 1 . . Communications Jammed . | . . . . Distress Signals . | . . . . Times Spotted 49 | . 15 13 21 Peak Tracking Total 6 | . 5 3 6 Tactical Retreats 4 | . . 1 3 ECM-based Alert Blocks 3 | . . . 3 Traps | -11 -10 -9 -8 ------- Run | Yrd Mat Mat Mat Traps Triggered . | . . . . Indirectly . | . . . . Trap Hack Attempts . | . . . . Triggered . | . . . . Disarmed . | . . . . Reprogrammed . | . . . . Reused . | . . . . Traps Extracted . | . . . . Installed . | . . . . Triggered . | . . . . Machines | -11 -10 -9 -8 ---------- Run | Yrd Mat Mat Mat Machines Disabled 1 | . . . 1 Max in Single Turn 1 | . . . 1 Machines Repaired . | . . . . Machines Dismantled . | . . . . Machines Sabotaged . | . . . . Overloaded Fab Kills . | . . . . Hacking | -11 -10 -9 -8 --------- Run | Yrd Mat Mat Mat Machines Accessed 3 | . 1 . 2 Terminals 1 | . . . 1 Fabricators . | . . . . Repair Stations 1 | . 1 . . Recycling Units 1 | . . . 1 Scanalyzers . | . . . . Garrison Access . | . . . . Total Hacks 7 | . 3 . 4 Successful 3 | . 1 . 2 Failed 4 | . 2 . 2 Catastrophic 2 | . 2 . . Database Lockouts . | . . . . Manual . | . . . . Terminals 2 | . . . 2 Fabricators . | . . . . Repair Stations 3 | . 3 . . Recycling Units 2 | . . . 2 Scanalyzers . | . . . . Garrison Access . | . . . . Terminal Hacks 2 | . . . 2 Alert Level 1 | . . . 1 Dispatch Records 1 | . . . 1 Fabricator Hacks . | . . . . Repair Station Hacks 1 | . 1 . . Refit 1 | . 1 . . Recycling Unit Hacks . | . . . . Scanalyzer . | . . . . Garrison Access Hacks . | . . . . Unauthorized Hacks . | . . . . Terminals . | . . . . Fabricators . | . . . . Repair Stations . | . . . . Recycling Units . | . . . . Scanalyzers . | . . . . Garrison Access . | . . . . Data Cores Recovered . | . . . . Used . | . . . . Hacking Detections 1 | . 1 . . Full Trace Events 1 | . 1 . . Feedback Events . | . . . . Feedback Blocked . | . . . . Robot Schematics Acquired . | . . . . Robots Built . | . . . . Authchips . | . . . . Time . | . . . . Total Robot Build Rating . | . . . . Part Schematics Acquired . | . . . . Parts Built . | . . . . Authchips . | . . . . Time . | . . . . Total Part Build Rating . | . . . . Part Studies Acquired . | . . . . Parts Repaired . | . . . . Time . | . . . . Parts Recycled . | . . . . Recycled Matter . | . . . . Retrieved Matter . | . . . . Retrieved Components . | . . . . Parts Scanalyzed . | . . . . Part Schematics Acquired . | . . . . Parts Damaged . | . . . . Bothacking | -11 -10 -9 -8 ------------ Run | Yrd Mat Mat Mat Used RIF Installer . | . . . . Robots Hacked . | . . . . Non-combat . | . . . . Combat . | . . . . Robot Hacks Applied . | . . . . Relay Couplers Released . | . . . . Fabnet Peak Effective % . | . . . . Robots Rewired . | . . . . Allies Hacked . | . . . . Hacks Repelled . | . . . . Allies | -11 -10 -9 -8 -------- Run | Yrd Mat Mat Mat Total Allies . | . . . . Largest Group . | . . . . Highest-Rated Group . | . . . . Highest-Rated Ally . | . . . . Total Orders . | . . . . Ally Attacks . | . . . . Total Damage . | . . . . Kills . | . . . . Allies Corrupted . | . . . . Allies Melted . | . . . . Intel | -11 -10 -9 -8 ------- Run | Yrd Mat Mat Mat Active Infowar (turns) 81 | . . . 81 ECM 81 | . . . 81 Robot Analysis Total . | . . . . Derelict Logs Recovered . | . . . . Drone Launches . | . . . . Drone Recoveries . | . . . . Exploration | -11 -10 -9 -8 ------------- Run | Yrd Mat Mat Mat Turns Passed 2184 | 809 507 392 476 Spaces Moved 1158 | 122 254 405 377 Core 190 | 21 7 . 162 Treads . | . . . . Legs 10 | . . . 10 Wheels 226 | 101 116 . 9 Hover . | . . . . Flight 732 | . 131 405 196 Fastest Speed 37 | 50 37 37 37 Average Speed 59 | 91 70 38 63 Slowest Speed 250 | 100 150 107 250 Overloaded Moves . | . . . . Propulsion Burnouts . | . . . . Robots Hopped 5 | . 1 4 . Potential Cave-ins . | . . . . Cave-ins Triggered . | . . . . Exploration Rate (%) 26 | 15 37 30 22 Regions Visited 3 Branch Regions . Pre-discovered Areas . | . . . . Known Exits Taken . | . . . . Unknown Exits Taken 3 | 1 1 1 . Scrap Searched . | . . . . Spaces Dug . | . . . . Terrain Destroyed 45 | . 40 3 2 Melee . | . . . . Projectile 2 | . . . 2 AOE 43 | . 40 3 . Terrain Rammed . | . . . . Walls Destroyed . | . . . . Machines Disabled . | . . . . Actions | -11 -10 -9 -8 --------- Run | Yrd Mat Mat Mat Total 2505 | 819 532 606 548 Wait 1141 | 685 238 143 75 Move 1145 | 121 251 396 377 Hop 5 | . 1 4 . Pick Up 26 | 7 4 7 8 Fast Attach 3 | . . . 3 Attach 33 | 6 4 11 12 Detach 12 | . . 8 4 Swap 3 | . 1 2 . Drop 10 | . 1 2 7 Fire 105 | . 32 33 40 Melee 17 | . . . 17 Ram 5 | . . . 5 Kick . | . . . . Crush . | . . . . Escape Stasis . | . . . . Rewire . | . . . . Trap . | . . . . Miscellaneous . | . . . . Route ------- -11/Scrapyard -10/Materials -9/Materials -8/Materials (discovered 1 exit: [*Sto]) History --------- Turn | Location | Event 9 | -11/Scrapyard | Discovered new exit (range 16) 810 | -11/Scrapyard | Entered Materials 811 | -10/Materials | Build established: Mutant 1134 | -10/Materials | Lost 3 parts (1n2w) 1311 | -10/Materials | Discovered new exit (range 15) 1317 | -10/Materials | Entered another Materials area 1317 | -9/Materials | Evolved 2 slots: Utility x1, Weapon x1 1462 | -9/Materials | Discovered new exit (range 3) 1709 | -9/Materials | Entered another Materials area 1709 | -8/Materials | Evolved 2 slots: Power x2 1732 | -8/Materials | Discovered new exit (range 12) 1992 | -8/Materials | Core integrity fell below 50% 2025 | -8/Materials | Lost 5 parts (1p1n1u2w) 2160 | -8/Materials | Core integrity fell below 20% 2185 | -8/Materials | Destroyed by G-47 Trooper with Particle Gun Last Messages --------------- R-06 Scavenger collects Lgt. Ion Engine. Acquired 18 matter. R-06 Scavenger collects Corrupted Aluminum Leg. Lgt. Armor Plating destroyed. L-31 Rogue knocked back. U-05 Engineer builds a Wall. Com. Wheel destroyed. L-31 Rogue knocked back. Destroyed Core Shielding. L-31 Rogue system corrupted by crushing effect. G-47 Trooper knocked back. Flail severed. Assault Cannon destroyed. Slammed into L-31 Rogue. Aluminum Leg destroyed. Slammed into L-31 Rogue. Acquired 26 matter. Critical hit (Burn: +37). Connecting with Terminal... Slammed into G-47 Trooper. Map ----- +----------------------------------------------------+ | ?????????????????????????????????????????????????? | | ?????????????????????????????????????????????????? | | ?????????????????????????????????????????????????? | | ?????????????????????????????????????????????????? | | ?????????????????????????????????????????????????? | | ??????????????????????????? ??????????????????? | | ??????????????????????????? ??????????????????? | | ??????????????????????????? ??????????????????? | | ??????????????????????????# ??????????????????? | | ??????????????????????????# ??????????????????? | | ??????????????????????????# #??????????????????? | | ??????????????????????????# #??????????????????? | | ?????? ??????????????????# #??????????????????? | | ?????? ??????????????????# #???#?####?????????? | | ?????? ??????????????????# #?? ??????????? | | ?????# #????????????????## ##? ????????????? | | ?????# #????????????????# # ?????????????? | | ?????# # ???????????????# # !??????????????? | | ?????# # ?????#?????????# <% / ???????????????? | | ?????# # """ #?????????#% # ????????????????? | | ?????# # """ #?????????# % #?????????????????? | | ?????# # #?????????##" #?????????????????? | | ?????# #? """ ???????????##/ #?????????????????? | | ###### #? """ ???#######??# #??########???????? | | # #??""" #??# ####g #??#[ [ #???????? | | # #?? ???# %@l%* #??# #???????? | | """ # ####+###### T %%% = #??# " #???????? | | """ # u t %g ! #??# "" #???????? | | """ # ^ r #####+##??#] "" #???????? | | + """ ####### ## ##### """ #???????? | | # """ ####### ## "T" # #! "" #???????? | | # """ # # ## + # """ #???????? | | #+#### #""" # ## # # """ #???????? | | # #??# #""" # ## """ # + """ #???????? | | # #??# """ #""" # ## """ # # " #???????? | | # #??# """ #""" # ## """ # # #???????? | | # #### """ #""" # ## # ########???????? | | + % # # ## """ # # "T" #???????? | | # # # #? """ # # #???????? | | # + # #????" # # """ #???????? | | # # "T" # #???? # + """ #???????? | | # " " # """ # #????### # """ #???????? | | "Y" ####### ##?????# # #???????? | | """ ####### #############??? | | ##### ############# ! ?? | | # ???????????# T [ #???????? | | # ??????????# #???????? | | # ?????????# ####### ########???????? | | "" # ?????????#######?????# #??????????????? | | "" ## ????????????????????# #??????????????? | +----------------------------------------------------+ Best States ------------- Heat Dissipation 41 Energy Generation 10 Energy Capacity 125 Matter Stores 300 Matter Capacity 300 Sight Range 16 Terrain Scan Density 10 ECM Strength 1 Armor Coverage 225 Evasion (%) 62 Salvage Targeting 1 Item Schematics ----------------- None Robot Schematics ------------------ None Fabricated ------------ Nothing Repaired ---------- Nothing Studied --------- None Alien Tech Used ----------------- None Achievements -------------- One Hack Too Far Overwhelming Challenges ------------ None Game ------ Seed TrapSlugCorpse Manual? 0 Play Time 00:35:00 Cumulative 4.3 hours Start 2025.12.26 @ 22:14:57 End 2025.12.29 @ 22:41:56 Sessions 3 Manual Loads 0 Difficulty Rogue Special Mode None Game No. 7 Rogue 7 Adventurer 0 Explorer 0 Win Type - Total 0 Types 0/0/0/0/0/0/0/0/0/0 Lore% 0 Gallery% 5 Achievement% 5 Wizard Run 0 Options --------- Layout 1 ASCII 0 Keyboard 0 Movement Mouse Keybinds 0 Fullscreen 1 Font 24/Smallcaps Map View 50x35 Zoom Use 0% Tactical HUD 0 Map Filters NONE Filters NONE Steam 1 RUN: 24841a84-2aca-4e50-83f6-4ed60935732a